[Event "44th Chess Olympiad Open 2022"]
[Site "Chennai"]
[Date "2022.07.30"]
[Round "2.53"]
[White "Al Busaidi, Hamood"]
[Black "Aboudi, Marwan"]
[Result "0-1"]
[WhiteElo "1743"]
[BlackElo "2144"]
[Annotator "NA"]
[PlyCount "54"]
[EventDate "2022.??.??"]
[TimeControl "60"]

1. e4 {[%emt 0:00:03]} c5 {[%emt 0:00:06]} 2. Nf3 {[%emt 0:00:04]} d6 {[%emt 0:
00:00]} 3. d4 {[%emt 0:00:11]} cxd4 {[%emt 0:00:07]} 4. Nxd4 {[%emt 0:00:05]}
Nf6 {[%emt 0:00:09]} 5. Nc3 {[%emt 0:00:06]} Nc6 {[%emt 0:00:38]} 6. h3 {
[%emt 0:05:26]} e6 {[%emt 0:01:50]} 7. Be3 {[%emt 0:01:20]} Be7 {[%emt 0:00:24]
} 8. Be2 {[%emt 0:00:30]} O-O {[%emt 0:03:13]} 9. Qd2 {[%emt 0:00:24]} a6 {
[%emt 0:03:48]} 10. a4 {[%emt 0:03:13]} Bd7 {[%emt 0:20:17]} 11. g4 {[%emt 0:
00:00]} Nxd4 {[%emt 0:00:36]} 12. Bxd4 {[%emt 0:00:23]} Bc6 {[%emt 0:01:10]}
13. Qe3 {[%emt 0:10:17]} b5 {[%emt 0:08:42]} 14. axb5 {[%emt 0:32:05]} axb5 {
[%emt 0:02:55]} 15. Rxa8 {[%emt 0:03:03]} Qxa8 {[%emt 0:00:25]} 16. Bxf6 {
[%emt 0:12:34]} Bxf6 {[%emt 0:01:16]} 17. O-O {[%emt 0:02:17]} b4 {[%emt 0:00:
00]} 18. Nb5 {[%emt 0:03:58]} Bxe4 {[%emt 0:01:02]} 19. Nxd6 {[%emt 0:02:29]}
Bxc2 {[%emt 0:00:11]} 20. Bf3 {[%emt 0:01:23]} Qa2 {[%emt 0:05:02]} 21. b3 {
[%emt 0:01:47]} Bxb3 {[%emt 0:05:50]} 22. g5 {[%emt 0:00:13]} Be7 {[%emt 0:00:
00]} 23. Nb5 {[%emt 0:00:05]} Bc4 {[%emt 0:01:12]} 24. Nc7 {[%emt 0:01:06]}
Bxf1 {[%emt 0:02:32]} 25. Kxf1 {[%emt 0:00:14]} Qc4+ {[%emt 0:00:13]} 26. Be2 {
[%emt 0:00:25]} Qxc7 {[%emt 0:00:11]} 27. g6 {[%emt 0:00:28]} hxg6 {[%emt 0:00:
00]} 0-1

[Event "44th Chess Olympiad Open 2022"]
[Site "Chennai"]
[Date "2022.07.30"]
[Round "2.54"]
[White "Kulpruethanon, Thanadon"]
[Black "Van den Brink, Peter"]
[Result "1-0"]
[WhiteElo "2294"]
[BlackElo "2167"]
[Annotator "TA"]
[PlyCount "83"]
[EventDate "2022.??.??"]
[TimeControl "60"]

{[%evp 13,83,18,13,9,18,30,16,18,17,12,22,4,7,5,13,14,62,0,11,9,56,51,89,100,
112,91,375,364,358,364,395,377,400,398,395,391,491,495,700,649,637,604,534,572,
576,558,875,545,540,537,768,764,761,752,1022,1000,1025,1005,969,970,1120,1110,
1086,1005,12841,12841,12841,12841,12844,12844,12845,12845]} 1. d4 {[%emt 0:00:
00]} d5 {[%emt 0:00:10]} 2. c4 {[%emt 0:00:06]} e6 {[%emt 0:00:08]} 3. Nf3 {
[%emt 0:00:16]} Be7 {[%emt 0:00:09]} 4. g3 {[%emt 0:00:21]} Nf6 {[%emt 0:00:09]
} 5. Bg2 {[%emt 0:00:08]} O-O {[%emt 0:00:09]} 6. O-O {[%emt 0:00:08]} dxc4 {
[%emt 0:01:06]} 7. Qc2 {[%emt 0:00:22]} b5 {[%emt 0:01:45]} 8. a4 {[%emt 0:00:
00] E05: Open Catalan: 5 Nf3 Be7.} b4 {[%emt 0:00:16]} 9. Nfd2 {[%emt 0:00:47]}
c6 {[%emt 0:01:29]} 10. Nxc4 {[%emt 0:00:53] The position is equal.} Qxd4 {
[%emt 0:00:38]} 11. Rd1 {[%emt 0:03:17]} Qc5 {[%emt 0:01:11]} 12. Be3 {[%emt 0:
00:00] White has compensation.} Qh5 {[%emt 0:00:27]} 13. Nbd2 {[%emt 0:04:04]
[%cal Yb1d2,Yd2f3,Yf3e5]} Ng4 {[%emt 0:23:10]} 14. Nf3 {[%emt 0:03:50]} Ba6 {
[%emt 0:04:32]} (14... Nxe3 $11 15. Nxe3 a5) 15. h3 {[%emt 0:08:06] White is
more active.} (15. Bd4 $1 $14) 15... Nxe3 {[%emt 0:00:00]} (15... b3 $5 16.
Qxb3 Bxc4 17. Qxc4 Nxe3 18. fxe3 Bf6 $14) 16. Nxe3 {[%emt 0:00:08] [#]} Rc8
$146 {[%emt 0:04:31]} (16... Bb7 $11 {feels stronger.}) ({Predecessor:} 16...
Bb7 17. a5 c5 18. a6 Bc6 19. g4 Qh6 20. Ne5 Bxg2 21. Kxg2 Qf4 22. N3c4 f5 {
1-0 (56) Hilverda,A (2362)-Hammarstrom,U (2214) Stockholm 2018}) 17. Rd2 $14 {
[%emt 0:02:38]} c5 {[%emt 0:12:17] [#]} 18. g4 $1 {[%emt 0:00:00]} ({Of course
not} 18. Ne5 $6 {[#]} Qxe5 $1 19. Bxa8 c4 $11) 18... Qh6 {[%emt 0:16:47]} 19.
Ne5 {[%emt 0:01:00] Prevents Nc6. Discovered Attack} Bf6 $2 {[%emt 0:00:23]
This costs Black the game.} 20. Bxa8 $18 {[%emt 0:05:55]} Bxe5 {[%emt 0:00:46]
[#]} 21. Qxc5 $3 {[%emt 0:00:59]} Qg5 {[%emt 0:09:56]} (21... f6 $2 22. Qe7 g6
23. Rad1 $18) (21... Qf6 22. Rad1) 22. Qxb4 {[%emt 0:03:44]} h5 {[%emt 0:00:59]
} 23. Qe4 {[%emt 0:00:00]} hxg4 {[%emt 0:01:30]} 24. hxg4 {[%emt 0:01:45]} Rc5
{[%emt 0:08:13]} 25. Rad1 {[%emt 0:06:34] Intending Rd8+ and mate. White is
clearly winning.} f5 {[%emt 0:01:09] [#]} (25... Rc8 $142 26. b4 Rf8) 26. Nxf5
$1 {[%emt 0:14:16]} exf5 {[%emt 0:03:17]} 27. Bd5+ {[%emt 0:00:16]} Kh7 {
[%emt 0:05:04]} 28. Qxe5 {[%emt 0:00:22]} Qxg4+ {[%emt 0:00:20]} 29. Qg3 {
[%emt 0:02:00]} Bxe2 {[%emt 0:00:00]} 30. Qxg4 {[%emt 0:16:38]} Bxg4 {[%emt 0:
00:02]} 31. b4 {[%emt 0:00:31][%cal Yb2b4,Yb4b5]} Rc7 {[%emt 0:03:05]} 32. f3 {
[%emt 0:00:12]} Bh5 {[%emt 0:00:15]} 33. b5 {[%emt 0:00:28]} g5 {[%emt 0:01:28]
} 34. Ba8 {[%emt 0:00:00]} g4 {[%emt 0:00:13]} 35. Rd8 {[%emt 0:00:22]} gxf3 {
[%emt 0:00:01]} 36. Kf2 {[%emt 0:00:18]} ({Less strong is} 36. Rxb8 f2+ 37.
Kxf2 Bxd1 $18) 36... Kg6 {[%emt 0:01:07]} 37. R1d2 {[%emt 0:00:51]} Rc4 {
[%emt 0:00:21]} 38. Rxb8 {[%emt 0:00:31]} Rxa4 {[%emt 0:00:01]} 39. Bxf3 {
[%emt 0:01:16]} Rf4 {[%emt 0:00:00]} 40. Rd3 {[%emt 0:01:27]} Bg4 {[%emt 0:00:
41]} 41. Kg3 {[%emt 0:06:36] Rd6+ would kill now.} Rb4 {[%emt 0:06:00]} 42.
Bxg4 {[%emt 0:00:00] Weighted Error Value: White=0.18 (very precise) /Black=0.
54} 1-0

[Event "44th Chess Olympiad Open 2022"]
[Site "Chennai"]
[Date "2022.07.30"]
[Round "2.54"]
[White "Jingjang, Shin"]
[Black "Pesqueira, Jose"]
[Result "1/2-1/2"]
[WhiteElo "1956"]
[BlackElo "1809"]
[Annotator "NA RC"]
[PlyCount "88"]
[EventDate "2022.??.??"]
[TimeControl "60"]

1. d4 {[%emt 0:00:15]} g6 {[%emt 0:00:09]} 2. Nf3 {[%emt 0:00:04]} Bg7 {
[%emt 0:00:08]} 3. Bg5 {[%emt 0:00:04]} d6 {[%emt 0:00:49]} 4. e4 {[%emt 0:00:
00]} c5 {[%emt 0:06:41]} 5. c3 {[%emt 0:00:35]} Bg4 {[%emt 0:06:20]} 6. dxc5 {
[%emt 0:04:04]} Bxf3 {[%emt 0:08:13]} 7. Qxf3 {[%emt 0:03:30]} dxc5 {[%emt 0:
00:00]} 8. Bc4 {[%emt 0:00:28]} f6 {[%emt 0:03:22]} 9. e5 {[%emt 0:12:46]} Nc6
{[%emt 0:04:42]} 10. exf6 {[%emt 0:01:21]} Nxf6 {[%emt 0:16:32]} 11. O-O {
[%emt 0:05:08]} Ne5 {[%emt 0:28:28]} 12. Bb5+ {[%emt 0:00:25]} Kf8 {[%emt 0:00:
00]} 13. Qe2 {[%emt 0:08:00]} Qc7 {[%emt 0:03:35]} 14. h3 {[%emt 0:16:08]} a6 {
[%emt 0:00:38]} 15. Ba4 {[%emt 0:02:45]} b5 {[%emt 0:01:33]} 16. Bc2 {[%emt 0:
00:00]} Nf7 {[%emt 0:01:26]} 17. Bh4 {[%emt 0:01:14]} Qe5 {[%emt 0:00:30]} 18.
Qf3 {[%emt 0:02:49]} Rd8 {[%emt 0:00:35]} 19. Qb7 {[%emt 0:05:45]} Qe6 {
[%emt 0:03:52]} 20. Na3 {[%emt 0:10:18]} Qc8 {[%emt 0:00:22]} 21. Qf3 {[%emt 0:
00:00]} Nd6 {[%emt 0:03:35]} 22. Qe2 {[%emt 0:04:42]} Kf7 {[%emt 0:00:29]} 23.
Rad1 {[%emt 0:05:31]} Rhe8 {[%emt 0:00:25]} 24. Bb1 {[%emt 0:00:51]} Qe6 {
[%emt 0:02:19]} 25. Qf3 {[%emt 0:00:22]} Nf5 {[%emt 0:01:38]} 26. Bxf6 {
[%emt 0:01:30]} exf6 {[%emt 0:00:12]} 27. Nc2 {[%emt 0:03:01]} Bh6 {[%emt 0:00:
00]} 28. Rfe1 {[%emt 0:00:39]} Rxd1 {[%emt 0:00:38]} 29. Rxd1 {[%emt 0:00:49]}
Re7 {[%emt 0:01:13]} 30. Ne1 {[%emt 0:04:20]} Nh4 {[%emt 0:01:20]} 31. Qg3 {
[%emt 0:00:41]} Qe2 {[%emt 0:00:57]} 32. Qd3 {[%emt 0:00:40]} Qxd3 {[%emt 0:00:
00]} 33. Nxd3 {[%emt 0:00:01]} c4 {[%emt 0:00:08]} 34. Nc5 {[%emt 0:00:37]} Re2
{[%emt 0:00:56]} 35. b3 {[%emt 0:00:17]} cxb3 {[%emt 0:00:03]} 36. axb3 {
[%emt 0:00:01]} Rd2 {[%emt 0:01:02]} 37. Rxd2 {[%emt 0:00:46]} Bxd2 {[%emt 0:
00:00]} 38. Nxa6 {[%emt 0:00:39]} Bxc3 {[%emt 0:00:03]} 39. Nc7 {[%emt 0:00:05]
} b4 {[%emt 0:00:27]} 40. Kf1 {[%emt 0:01:12]} f5 {[%emt 0:00:20]} 41. g3 {
[%emt 0:30:39]} Nf3 {[%emt 0:30:08]} 42. Bc2 {[%emt 0:00:59]} Nd4 {[%emt 0:00:
00]} 43. Bd3 {[%emt 0:00:26]} Bd2 {[%emt 0:00:51]} 44. Nb5 {[%emt 0:00:00]}
Nxb5 {[%emt 0:00:00]} 1/2-1/2

[Event "44th Chess Olympiad Open 2022"]
[Site "Chennai"]
[Date "2022.07.30"]
[Round "2.54"]
[White "Croes, Octavio"]
[Black "Arunnuntapanich, Tinnakrit"]
[Result "0-1"]
[WhiteElo "1794"]
[BlackElo "2117"]
[Annotator "NA RC"]
[PlyCount "106"]
[EventDate "2022.??.??"]
[TimeControl "60"]

1. d4 {[%emt 0:00:02]} Nf6 {[%emt 0:00:05]} 2. c4 {[%emt 0:00:07]} g6 {[%emt 0:
00:00]} 3. Nc3 {[%emt 0:00:08]} Bg7 {[%emt 0:00:05]} 4. e4 {[%emt 0:00:07]} d6
{[%emt 0:00:06]} 5. Bg5 {[%emt 0:00:15]} h6 {[%emt 0:06:24]} 6. Bf4 {[%emt 0:
00:00]} c6 {[%emt 0:21:24]} 7. Be2 {[%emt 0:01:23]} Qa5 {[%emt 0:02:26]} 8. Bd2
{[%emt 0:09:09]} Qc7 {[%emt 0:00:43]} 9. Rc1 {[%emt 0:05:11]} e5 {[%emt 0:00:
00]} 10. d5 {[%emt 0:13:51]} c5 {[%emt 0:05:16]} 11. f4 {[%emt 0:01:35]} exf4 {
[%emt 0:02:30]} 12. Bxf4 {[%emt 0:00:23]} Qe7 {[%emt 0:01:24]} 13. Qd3 {
[%emt 0:03:58]} O-O {[%emt 0:00:28]} 14. Nf3 {[%emt 0:01:44]} Nh5 {[%emt 0:00:
00]} 15. Bd2 {[%emt 0:08:35]} Re8 {[%emt 0:05:01]} 16. Kf2 {[%emt 0:00:26]} Nf6
{[%emt 0:00:31]} 17. Rhe1 {[%emt 0:05:52]} Ng4+ {[%emt 0:04:10]} 18. Kg1 {
[%emt 0:00:21]} Nd7 {[%emt 0:00:06]} 19. Bf4 {[%emt 0:10:05]} Nde5 {[%emt 0:00:
00]} 20. Nxe5 {[%emt 0:02:00]} Bxe5 {[%emt 0:02:31]} 21. Bxe5 {[%emt 0:05:28]}
Nxe5 {[%emt 0:02:34]} 22. Qg3 {[%emt 0:00:16]} Bd7 {[%emt 0:00:52]} 23. Bd3 {
[%emt 0:04:18]} Qg5 {[%emt 0:02:52]} 24. Re3 {[%emt 0:03:40]} Qxg3 {[%emt 0:00:
00]} 25. Rxg3 {[%emt 0:00:08]} Re7 {[%emt 0:00:17]} 26. Be2 {[%emt 0:02:50]}
Rae8 {[%emt 0:00:15]} 27. Nd1 {[%emt 0:01:41]} a6 {[%emt 0:00:43]} 28. Ne3 {
[%emt 0:02:25]} Kh7 {[%emt 0:07:55]} 29. Bg4 {[%emt 0:02:06]} Bxg4 {[%emt 0:00:
00]} 30. Nxg4 {[%emt 0:00:09]} Nxg4 {[%emt 0:00:14]} 31. Rxg4 {[%emt 0:00:14]}
Rxe4 {[%emt 0:00:07]} 32. Rxe4 {[%emt 0:00:53]} Rxe4 {[%emt 0:00:01]} 33. Kf2 {
[%emt 0:01:54]} Kg7 {[%emt 0:02:58]} 34. Kf3 {[%emt 0:00:56]} Rd4 {[%emt 0:00:
00]} 35. Ke3 {[%emt 0:05:25]} b5 {[%emt 0:01:13]} 36. b3 {[%emt 0:01:06]} bxc4
{[%emt 0:00:06]} 37. bxc4 {[%emt 0:00:09]} Kf6 {[%emt 0:00:10]} 38. Rf1+ {
[%emt 0:00:28]} Ke7 {[%emt 0:00:20]} 39. Rc1 {[%emt 0:00:46]} f5 {[%emt 0:00:
00]} 40. Rc3 {[%emt 0:00:10]} Kf6 {[%emt 0:00:55]} 41. Ra3 {[%emt 0:30:35]}
Rxc4 {[%emt 0:30:12]} 42. Rxa6 {[%emt 0:00:15]} Ke5 {[%emt 0:00:03]} 43. a4 {
[%emt 0:01:12]} Kxd5 {[%emt 0:00:06]} 44. a5 {[%emt 0:00:10]} Rc2 {[%emt 0:00:
00]} 45. Kf3 {[%emt 0:00:00]} Ra2 {[%emt 0:00:00]} 46. Ra8 {[%emt 0:00:00]} Kd4
{[%emt 0:00:00]} 47. a6 {[%emt 0:00:00]} c4 {[%emt 0:00:00]} 48. a7 {[%emt 0:
00:00]} d5 {[%emt 0:00:00]} 49. Rg8 {[%emt 0:00:00]} Rxa7 {[%emt 0:00:00]} 50.
Rxg6 {[%emt 0:00:00]} c3 {[%emt 0:00:00]} 51. Ke2 {[%emt 0:00:00]} Ra2+ {
[%emt 0:00:00]} 52. Kd1 {[%emt 0:00:00]} f4 {[%emt 0:00:00]} 53. h4 {[%emt 0:
00:00]} Ke5 {[%emt 0:02:48]} 0-1

[Event "44th Chess Olympiad Open 2022"]
[Site "Chennai"]
[Date "2022.07.30"]
[Round "2.54"]
[White "Antonio, Kyell-Jean"]
[Black "Saeheng, Boonsueb"]
[Result "0-1"]
[WhiteElo "1497"]
[BlackElo "2063"]
[Annotator "NA RC"]
[PlyCount "100"]
[EventDate "2022.??.??"]
[TimeControl "60"]

1. e4 {[%emt 0:00:12]} c5 {[%emt 0:00:23]} 2. Nf3 {[%emt 0:00:08]} d6 {[%emt 0:
00:00]} 3. d4 {[%emt 0:00:08]} cxd4 {[%emt 0:00:15]} 4. Nxd4 {[%emt 0:00:07]}
Nf6 {[%emt 0:00:12]} 5. Nc3 {[%emt 0:00:10]} a6 {[%emt 0:00:14]} 6. Be2 {
[%emt 0:00:05]} e5 {[%emt 0:00:27]} 7. Nb3 {[%emt 0:00:09]} Be7 {[%emt 0:00:21]
} 8. Be3 {[%emt 0:01:07]} Be6 {[%emt 0:01:10]} 9. O-O {[%emt 0:00:03]} Nbd7 {
[%emt 0:01:21]} 10. a4 {[%emt 0:02:34]} O-O {[%emt 0:07:04]} 11. Qd2 {[%emt 0:
00:00]} Rc8 {[%emt 0:01:45]} 12. a5 {[%emt 0:00:17]} Rc6 {[%emt 0:07:28]} 13.
Rfc1 {[%emt 0:12:19]} Re8 {[%emt 0:10:19]} 14. f3 {[%emt 0:10:22]} Bc4 {
[%emt 0:07:00]} 15. Nd5 {[%emt 0:06:19]} Nxd5 {[%emt 0:00:54]} 16. exd5 {
[%emt 0:01:03]} Rc8 {[%emt 0:01:06]} 17. Bxc4 {[%emt 0:00:51]} Rxc4 {[%emt 0:
00:00]} 18. Qd3 {[%emt 0:00:36]} Rc8 {[%emt 0:10:27]} 19. c4 {[%emt 0:06:19]}
Bg5 {[%emt 0:03:16]} 20. Nd2 {[%emt 0:02:56]} f5 {[%emt 0:03:25]} 21. b4 {
[%emt 0:05:08]} e4 {[%emt 0:11:21]} 22. fxe4 {[%emt 0:13:16]} Ne5 {[%emt 0:00:
00]} 23. Bxg5 {[%emt 0:14:46]} Nxd3 {[%emt 0:07:17]} 24. Bxd8 {[%emt 0:00:12]}
Nxc1 {[%emt 0:00:06]} 25. Rxc1 {[%emt 0:05:09]} Rcxd8 {[%emt 0:00:10]} 26. exf5
{[%emt 0:00:39]} Re2 {[%emt 0:00:24]} 27. Rd1 {[%emt 0:02:37]} Kf7 {[%emt 0:00:
00]} 28. Kf1 {[%emt 0:00:10]} Re5 {[%emt 0:04:15]} 29. g4 {[%emt 0:03:37]} Kf6
{[%emt 0:03:11]} 30. Re1 {[%emt 0:04:18]} Rxe1+ {[%emt 0:02:26]} 31. Kxe1 {
[%emt 0:00:02]} Ke5 {[%emt 0:00:10]} 32. Kf2 {[%emt 0:02:24]} h5 {[%emt 0:00:
00]} 33. Kf3 {[%emt 0:01:31]} Rf8 {[%emt 0:01:05]} 34. h3 {[%emt 0:00:42]} g6 {
[%emt 0:00:41]} 35. Ke3 {[%emt 0:00:15]} hxg4 {[%emt 0:00:49]} 36. hxg4 {
[%emt 0:00:04]} gxf5 {[%emt 0:00:07]} 37. Nf3+ {[%emt 0:00:09]} Kf6 {[%emt 0:
00:00]} 38. g5+ {[%emt 0:00:56]} Kg6 {[%emt 0:00:35]} 39. Kf4 {[%emt 0:00:01]}
Rc8 {[%emt 0:01:05]} 40. c5 {[%emt 0:03:50]} dxc5 {[%emt 0:00:19]} 41. Ne5+ {
[%emt 0:11:23]} Kg7 {[%emt 0:03:01]} 42. Kxf5 {[%emt 0:03:11]} cxb4 {[%emt 0:
00:00]} 43. d6 {[%emt 0:00:27]} b3 {[%emt 0:01:09]} 44. Nd3 {[%emt 0:00:21]}
Rc3 {[%emt 0:02:15]} 45. Ke4 {[%emt 0:00:01]} Kf7 {[%emt 0:00:46]} 46. g6+ {
[%emt 0:02:33]} Ke6 {[%emt 0:00:13]} 47. g7 {[%emt 0:00:41]} Rc4+ {[%emt 0:00:
00]} 48. Kf3 {[%emt 0:00:01]} Rc8 {[%emt 0:00:21]} 49. Nc5+ {[%emt 0:01:22]}
Kxd6 {[%emt 0:00:12]} 50. Ne4+ {[%emt 0:01:41]} Ke5 {[%emt 0:00:21]} 0-1

[Event "44th Chess Olympiad Open 2022"]
[Site "Chennai"]
[Date "2022.07.30"]
[Round "2.55"]
[White "Martyr, Reginald"]
[Black "Tagelsir, Abubaker"]
[Result "1/2-1/2"]
[WhiteElo "2194"]
[BlackElo "2232"]
[Annotator "RC"]
[PlyCount "101"]
[EventDate "2022.??.??"]
[TimeControl "60"]

1. Nf3 {[%emt 0:00:08]} Nf6 {[%emt 0:00:08]} 2. c4 {[%emt 0:00:13]} g6 {
[%emt 0:00:07]} 3. b3 {[%emt 0:00:13]} Bg7 {[%emt 0:00:12]} 4. Bb2 {[%emt 0:00:
00]} O-O {[%emt 0:00:07]} 5. g3 {[%emt 0:00:19]} d5 {[%emt 0:04:36]} 6. cxd5 {
[%emt 0:00:54]} Qxd5 {[%emt 0:01:51]} 7. Bg2 {[%emt 0:00:36]} c5 {[%emt 0:00:
00]} 8. Nc3 {[%emt 0:11:26]} Qf5 {[%emt 0:02:24]} 9. h3 {[%emt 0:10:10]} Nc6 {
[%emt 0:01:00]} 10. Rc1 {[%emt 0:06:31]} Rd8 {[%emt 0:04:00]} 11. Na4 {[%emt 0:
00:00]} b6 {[%emt 0:14:01]} 12. O-O {[%emt 0:17:25]} Bb7 {[%emt 0:00:40]} 13.
d3 {[%emt 0:00:38]} Rac8 {[%emt 0:03:56]} 14. a3 {[%emt 0:01:11]} Rc7 {[%emt 0:
00:00]} 15. b4 {[%emt 0:05:05]} cxb4 {[%emt 0:09:41]} 16. axb4 {[%emt 0:00:20]}
Rcd7 {[%emt 0:10:36]} 17. Rb1 {[%emt 0:08:26]} e5 {[%emt 0:01:52]} 18. g4 {
[%emt 0:13:14]} Qe6 {[%emt 0:00:54]} 19. Ng5 {[%emt 0:01:46]} Qe7 {[%emt 0:00:
00]} 20. b5 {[%emt 0:01:01]} Nd4 {[%emt 0:00:54]} 21. Bxb7 {[%emt 0:01:04]}
Rxb7 {[%emt 0:00:14]} 22. Bc1 {[%emt 0:04:26]} h6 {[%emt 0:03:25]} 23. e3 {
[%emt 0:00:00]} hxg5 {[%emt 0:01:05]} 24. exd4 {[%emt 0:00:00]} Rxd4 {[%emt 0:
00:00]} 25. Bb2 {[%emt 0:00:00]} Rd8 {[%emt 0:00:17]} 26. Re1 {[%emt 0:00:16]}
Nd5 {[%emt 0:01:07]} 27. Qf3 {[%emt 0:00:49]} Rbd7 {[%emt 0:01:58]} 28. d4 {
[%emt 0:00:15]} Qb4 {[%emt 0:00:31]} 29. Nc3 {[%emt 0:01:33]} Nxc3 {[%emt 0:00:
00]} 30. Bxc3 {[%emt 0:00:11]} Qc4 {[%emt 0:00:07]} 31. Rb4 {[%emt 0:00:54]}
Qd5 {[%emt 0:05:40]} 32. Qxd5 {[%emt 0:00:13]} Rxd5 {[%emt 0:00:06]} 33. dxe5 {
[%emt 0:00:09]} Rd3 {[%emt 0:00:13]} 34. Re3 {[%emt 0:02:17]} Rxe3 {[%emt 0:00:
00]} 35. fxe3 {[%emt 0:00:01]} Rd5 {[%emt 0:00:11]} 36. Rd4 {[%emt 0:01:13]}
Rxb5 {[%emt 0:01:38]} 37. Rd8+ {[%emt 0:00:05]} Bf8 {[%emt 0:00:18]} 38. Bd4 {
[%emt 0:00:24]} Rb1+ {[%emt 0:01:55]} 39. Kg2 {[%emt 0:00:13]} Rc1 {[%emt 0:00:
00]} 40. Kf3 {[%emt 0:01:01]} b5 {[%emt 0:03:29]} 41. Bxa7 {[%emt 0:30:01]} Kg7
{[%emt 0:11:53]} 42. Bd4 {[%emt 0:00:00]} Be7 {[%emt 0:01:06]} 43. Rb8 {
[%emt 0:00:00]} b4 {[%emt 0:00:15]} 44. Ke4 {[%emt 0:00:00]} Rc6 {[%emt 0:00:
00]} 45. Kd5 {[%emt 0:00:00]} Ra6 {[%emt 0:00:09]} 46. Re8 {[%emt 0:00:00]} Re6
{[%emt 0:00:52]} 47. Ra8 {[%emt 0:00:00]} Bf8 {[%emt 0:03:10]} 48. Rb8 {
[%emt 0:02:46]} Ra6 {[%emt 0:00:29]} 49. e4 {[%emt 0:00:29]} Re6 {[%emt 0:00:
00]} 50. Be3 {[%emt 0:01:11]} Be7 {[%emt 0:00:16]} 51. Bd4 {[%emt 0:01:17]}
1/2-1/2

[Event "44th Chess Olympiad Open 2022"]
[Site "Chennai"]
[Date "2022.07.30"]
[Round "2.55"]
[White "Hamid Mohammed"]
[Black "Sixtus Gabriel"]
[Result "1-0"]
[WhiteElo "2116"]
[BlackElo "1787"]
[Annotator "NA RC"]
[PlyCount "91"]
[EventDate "2022.??.??"]
[TimeControl "60"]

1. e4 {[%emt 0:00:02]} g6 {[%emt 0:00:17]} 2. d4 {[%emt 0:00:06]} Bg7 {[%emt 0:
00:00]} 3. Nc3 {[%emt 0:00:18]} d6 {[%emt 0:00:13]} 4. Be2 {[%emt 0:00:30]} Nf6
{[%emt 0:00:38]} 5. h4 {[%emt 0:02:47]} h5 {[%emt 0:01:58]} 6. Be3 {[%emt 0:00:
00]} c6 {[%emt 0:01:21]} 7. Qd2 {[%emt 0:03:00]} b5 {[%emt 0:02:22]} 8. f3 {
[%emt 0:01:19]} Nbd7 {[%emt 0:02:02]} 9. Nh3 {[%emt 0:03:31]} Nb6 {[%emt 0:00:
00]} 10. Ng5 {[%emt 0:03:14]} a5 {[%emt 0:02:52]} 11. Nd1 {[%emt 0:12:05]} b4 {
[%emt 0:07:50]} 12. Nf2 {[%emt 0:00:33]} Ba6 {[%emt 0:00:38]} 13. Bxa6 {
[%emt 0:02:30]} Rxa6 {[%emt 0:00:33]} 14. Qe2 {[%emt 0:00:04]} Qc8 {[%emt 0:00:
00]} 15. g4 {[%emt 0:13:37]} Na4 {[%emt 0:03:26]} 16. O-O-O {[%emt 0:12:55]}
Qb7 {[%emt 0:14:10]} 17. Rdg1 {[%emt 0:09:00]} Rb6 {[%emt 0:07:21]} 18. Qc4 {
[%emt 0:00:55]} O-O {[%emt 0:11:05]} 19. Qb3 {[%emt 0:03:12]} Nc3 {[%emt 0:00:
00]} 20. bxc3 {[%emt 0:01:21]} a4 {[%emt 0:02:08]} 21. Qc4 {[%emt 0:03:25]} d5
{[%emt 0:01:53]} 22. Qd3 {[%emt 0:00:17]} bxc3 {[%emt 0:01:05]} 23. Kd1 {
[%emt 0:02:12]} Rb1+ {[%emt 0:03:44]} 24. Ke2 {[%emt 0:01:37]} Rxg1 {[%emt 0:
00:00]} 25. Rxg1 {[%emt 0:00:08]} dxe4 {[%emt 0:00:37]} 26. fxe4 {[%emt 0:00:
00]} Qb2 {[%emt 0:01:25]} 27. gxh5 {[%emt 0:01:53]} Nxh5 {[%emt 0:01:06]} 28.
Nd1 {[%emt 0:02:05]} Qxa2 {[%emt 0:02:09]} 29. Nxc3 {[%emt 0:03:24]} Qa3 {
[%emt 0:00:37]} 30. e5 {[%emt 0:05:10]} c5 {[%emt 0:03:18]} 31. Nce4 {[%emt 0:
00:00]} Qb4 {[%emt 0:01:21]} 32. Nxc5 {[%emt 0:01:35]} Rd8 {[%emt 0:01:00]} 33.
c3 {[%emt 0:01:36]} Qb2+ {[%emt 0:00:49]} 34. Qd2 {[%emt 0:02:21]} Qb5+ {
[%emt 0:00:37]} 35. Kf2 {[%emt 0:00:08]} Bxe5 {[%emt 0:00:38]} 36. Qa2 {
[%emt 0:00:09]} e6 {[%emt 0:04:21]} 37. dxe5 {[%emt 0:00:49]} Ng7 {[%emt 0:00:
00]} 38. Rb1 {[%emt 0:01:27]} Qc6 {[%emt 0:00:42]} 39. Qxa4 {[%emt 0:00:48]}
Qd5 {[%emt 0:00:24]} 40. Qa7 {[%emt 0:02:41]} Qxe5 {[%emt 0:01:40]} 41. Qxf7+ {
[%emt 0:30:07]} Kh8 {[%emt 0:30:17]} 42. Bd4 {[%emt 0:00:00]} Qh2+ {[%emt 0:00:
00]} 43. Kf3 {[%emt 0:00:00]} e5 {[%emt 0:00:00]} 44. Nce6 {[%emt 0:00:00]} e4+
{[%emt 0:00:00]} 45. Nxe4 {[%emt 0:00:00]} Qh3+ {[%emt 0:00:00]} 46. Ng3 {
[%emt 0:00:00]} 1-0